fUSD/lending_fUSD_20240109
["ID","MTS","AMOUNT","RATE_DAILY","PERIOD"]
[310944549,1704826249764,-576.41604785,0.00041095,30]
[310944550,1704826249774,-500.0,0.00041095,30]
[310944551,1704826249784,-500.0,0.00041095,30]
[310944552,1704826249794,-500.0,0.00041095,30]
[310944553,1704826249803,-500.0,0.00041095,30]
[310944554,1704826249813,-500.0,0.00041095,30]
[310944555,1704826249823,-500.0,0.00041095,30]
[310944556,1704826249833,-500.0,0.00041095,30]
[310944557,1704826249842,-500.0,0.00041095,30]
[310944558,1704826249851,-304.59106892,0.00041095,30]
[310944559,1704826249861,-500.0,0.00041095,30]
[310944560,1704826249870,-500.0,0.00041095,30]
[310944561,1704826249881,-292.02857644,0.00041095,30]
[310944562,1704826249890,-561.19774549,0.00041095,30]
[310944563,1704826249900,-500.0,0.00041095,30]
[310944564,1704826249910,-570.68398493,0.00041095,30]
[310944565,1704826249920,-500.0,0.00041095,30]
[310944566,1704826249929,-500.0,0.00041095,30]
[310944567,1704826249939,-500.0,0.00041095,30]
[310944568,1704826249948,-500.0,0.00041095,2]
[310944569,1704826249958,-481.3889513,0.00041095,30]
[310944570,1704826249968,-490.29833182,0.00041095,30]
[310944571,1704826249977,-506.27861966,0.00041095,30]
[310944572,1704826249986,-500.0,0.00041095,30]
[310944573,1704826249996,-500.0,0.00041095,30]
[310944574,1704826250006,-316.66669991,0.00041095,30]
[310944575,1704826250016,-233.26109699,0.00041095,30]
[310944576,1704826250025,-533.66854784,0.00041095,30]
[310944577,1704826250035,-500.0,0.00041095,30]
[310944578,1704826250045,-500.0,0.00041095,30]
[310944579,1704826250055,-500.0,0.00041095,30]
[310944580,1704826250065,-500.0,0.00041095,30]
[310944581,1704826250075,-500.0,0.00041095,30]
[310944582,1704826250084,-502.69599873,0.00041095,30]
[310944583,1704826250094,-500.0,0.00041095,30]
[310944584,1704826250103,-500.0,0.00041095,30]
[310944585,1704826250112,-500.0,0.00041095,30]
[310944586,1704826250121,-512.08503377,0.00041095,30]
[310944587,1704826250132,-513.31905209,0.00041095,30]
[310944588,1704826250142,-500.0,0.00041095,30]
[310944589,1704826250151,-324.93365342,0.00041095,30]
[310944590,1704826250160,-500.0,0.00041095,30]
[310944591,1704826250170,-184.39643497,0.00041095,30]
[310944592,1704826250182,-503.87724154,0.00041095,30]
[310944593,1704826250201,-500.0,0.00041095,30]
[310944594,1704826250217,-500.0,0.00041095,30]
[310944595,1704826250227,-500.0,0.00041095,30]
[310944596,1704826250247,-911.7,0.00041095,30]
[310944597,1704826250268,-500.0,0.00041095,30]
[310944598,1704826250287,-655.15,0.00041095,30]
[310944599,1704826250308,-500.0,0.00041095,30]
[310944600,1704826250317,-1067.31,0.00041095,30]
[310944601,1704826250341,-500.0,0.00041095,30]
[310944602,1704826250363,-500.0,0.00041095,30]
[310944603,1704826250386,-500.0,0.00041095,30]
[310944604,1704826250399,-500.0,0.00041095,30]
[310944605,1704826250409,-500.0,0.00041095,30]
[310944606,1704826250418,-500.0,0.00041095,30]
[310944607,1704826250427,-500.0,0.00041095,30]
[310944608,1704826250437,-1592.31,0.00041095,30]
[310944609,1704826250446,-967.99,0.00041095,30]
[310944610,1704826250455,-500.0,0.00041095,30]
[310944611,1704826250464,-502.23136993,0.00041095,30]
[310944612,1704826250474,-1154.49,0.00041095,30]
[310944613,1704826250483,-182.8498151,0.00041095,30]
[310944614,1704826250493,-500.0,0.00041095,30]
[310944615,1704826250503,-500.0,0.00041095,30]
[310944616,1704826250513,-500.0,0.00041095,30]
[310944617,1704826250522,-500.0,0.00041095,30]
[310944618,1704826250533,-584.73,0.00041095,30]
[310944619,1704826250542,-496.10672283,0.00041095,30]
[310944620,1704826250552,-500.0,0.00041095,30]
[310944621,1704826250561,-1086.94,0.00041095,30]
[310944622,1704826250570,-560.07,0.00041095,30]
[310944623,1704826250580,-500.0,0.00041095,30]
[310944624,1704826250590,-500.0,0.00041095,30]
[310944625,1704826250600,-504.91,0.00041095,30]
[310944626,1704826250609,-500.0,0.00041095,30]
[310944627,1704826250619,-522.11085905,0.00041095,30]
[310944628,1704826250629,-513.43437484,0.00041095,30]
[310944629,1704826250639,-500.0,0.00041095,30]
[310944630,1704826250649,-500.0,0.00041095,30]
[310944631,1704826250658,-500.0,0.00041095,30]
[310944632,1704826250668,-500.0,0.00041095,30]
[310944633,1704826250678,-314.09824182,0.00041095,30]
[310944634,1704826250687,-500.0,0.00041095,30]
[310944635,1704826250697,-500.0,0.00041095,30]
[310944636,1704826250707,-500.0,0.00041095,30]
[310944637,1704826250716,-500.0,0.00041095,30]
[310944638,1704826250726,-601.72,0.00041095,30]
[310944639,1704826250735,-500.0,0.00041095,30]
[310944640,1704826250745,-500.0,0.00041095,30]
[310944641,1704826250754,-603.75,0.00041095,30]
[310944642,1704826250764,-500.0,0.00041095,30]
[310944643,1704826250773,-500.0,0.00041095,30]
[310944644,1704826250783,-500.0,0.00041095,30]
[310944645,1704826250792,-500.0,0.00041095,30]
[310944646,1704826250801,-500.0,0.00041095,30]
[310944647,1704826250810,-501.12355633,0.00041095,30]
[310944648,1704826250820,-838.66,0.00041095,30]
[310944649,1704826250830,-908.85,0.00041095,30]
[310944650,1704826250840,-551.08642287,0.00041095,30]
[310944651,1704826250849,-500.0,0.00041095,30]
[310944652,1704826250859,-500.0,0.00041095,30]
[310944653,1704826250869,-500.0,0.00041095,30]
[310944654,1704826250880,-500.0,0.00041095,30]
[310944655,1704826250890,-500.0,0.00041095,30]
[310944656,1704826250899,-500.0,0.00041095,30]
[310944657,1704826250909,-500.0,0.00041095,30]
[310944658,1704826250918,-500.0,0.00041095,30]
[310944659,1704826250929,-500.0,0.00041095,30]
[310944660,1704826250939,-343.82520986,0.00041095,30]
[310944661,1704826250948,-500.0,0.00041095,30]
[310944662,1704826250958,-500.0,0.00041095,30]
[310944663,1704826250967,-500.0,0.00041095,30]
[310944664,1704826250977,-505.86,0.00041095,30]
[310944665,1704826250989,-500.0,0.00041095,30]
[310944666,1704826250998,-500.0,0.00041095,30]
[310944667,1704826251008,-500.0,0.00041095,30]
[310944668,1704826251018,-500.0,0.00041095,30]
[310944669,1704826251028,-500.0,0.00041095,30]
[310944670,1704826251038,-500.0,0.00041095,30]
[310944671,1704826251048,-500.0,0.00041095,30]
[310944672,1704826251062,-500.0,0.00041095,30]
[310944673,1704826251071,-500.0,0.00041095,30]
[310944674,1704826251081,-500.0,0.00041095,30]
[310944675,1704826251090,-500.0,0.00041095,30]
[310944676,1704826251102,-500.0,0.00041095,30]
[310944677,1704826251112,-617.3,0.00041095,30]
[310944678,1704826251121,-505.69533763,0.00041095,30]
[310944679,1704826251132,-500.0,0.00041095,30]
[310944680,1704826251141,-610.64641582,0.00041095,30]
[310944681,1704826251151,-500.0,0.00041095,30]
[310944682,1704826251160,-500.0,0.00041095,30]
[310944683,1704826251169,-500.0,0.00041095,30]
[310944684,1704826251178,-500.0,0.00041095,30]
[310944685,1704826251188,-1224.88,0.00041095,30]
[310944686,1704826251197,-537.13476507,0.00041095,30]
[310944687,1704826251207,-500.0,0.00041095,30]
[310944688,1704826251217,-500.0,0.00041095,30]
[310944689,1704826251226,-500.0,0.00041095,30]
[310944690,1704826251235,-749.46,0.00041095,30]
[310944691,1704826251246,-500.0,0.00041095,30]
[310944692,1704826251255,-246.67277222,0.00041095,30]
[310944693,1704826251265,-500.0,0.00041095,30]
[310944694,1704826251275,-500.0,0.00041095,30]
[310944695,1704826251284,-506.84345612,0.00041095,30]
[310944696,1704826251294,-500.0,0.00041095,30]
[310944697,1704826251303,-500.0,0.00041095,30]
[310944698,1704826251313,-500.0,0.00041095,30]
[310944699,1704826251323,-500.0,0.00041095,30]
[310944700,1704826251333,-600.65,0.00041095,30]
[310944701,1704826251342,-500.0,0.00041095,30]
[310944702,1704826251352,-652.38,0.00041095,30]
[310944703,1704826251362,-633.02,0.00041095,30]
[310944704,1704826251372,-504.06982559,0.00041095,30]
[310944705,1704826251383,-500.0,0.00041095,30]
[310944706,1704826251393,-674.99,0.00041095,30]
[310944707,1704826251403,-500.0,0.00041095,30]
[310944708,1704826251413,-500.0,0.00041095,30]
[310944709,1704826251423,-500.0,0.00041095,30]
[310944710,1704826251433,-500.0,0.00041095,7]
[310944711,1704826251444,-500.0,0.00041095,30]
[310944712,1704826251454,-500.0,0.00041095,30]
[310944713,1704826251464,-642.54989736,0.00041095,30]
[310944714,1704826251475,-500.0,0.00041095,30]
[310944715,1704826251485,-201.22089554,0.00041095,30]
[310944716,1704826251495,-500.0,0.00041095,30]
[310944717,1704826251504,-500.0,0.00041095,30]
[310944718,1704826251514,-500.0,0.00041095,30]
[310944719,1704826251524,-699.4,0.00041095,30]
[310944720,1704826251533,-500.0,0.00041095,30]
[310944721,1704826251543,-500.0,0.00041095,30]
[310944722,1704826251553,-500.0,0.00041095,30]
[310944723,1704826251562,-525.21,0.00041095,30]
[310944724,1704826251571,-500.0,0.00041095,30]
[310944725,1704826251581,-500.0,0.00041095,30]
[310944726,1704826251591,-500.0,0.00041095,30]
[310944727,1704826251600,-500.0,0.00041095,30]
[310944728,1704826251610,-500.0,0.00041095,30]
[310944729,1704826251619,-738.31,0.00041095,30]
[310944730,1704826251629,-500.0,0.00041095,15]
[310944731,1704826251639,-500.0,0.00041095,30]
[310944732,1704826251649,-500.0,0.00041095,30]
[310944733,1704826251659,-500.0,0.00041095,30]
[310944734,1704826251669,-500.0,0.00041095,30]
[310944735,1704826251678,-500.0,0.00041095,30]
[310944736,1704826251688,-274.44150501,0.00041095,30]
[310944737,1704826251698,-278.20958271,0.00041095,30]
[310944738,1704826251708,-500.0,0.00041095,30]
[310944739,1704826251718,-500.0,0.00041095,30]
[310944740,1704826251727,-500.0,0.00041095,30]
[310944741,1704826251737,-895.29,0.00041095,30]
[310944742,1704826251746,-154.50269142,0.00041095,30]
[310944743,1704826251756,-500.0,0.00041095,30]
[310944744,1704826251765,-500.0,0.00041095,30]
[310944745,1704826251775,-500.0,0.00041095,30]
[310944746,1704826251785,-502.06227942,0.00041095,30]
[310944747,1704826251794,-500.0,0.00041095,30]
[310944748,1704826251804,-500.0,0.00041095,30]
[310944749,1704826252145,-500.0,0.00041095,30]
[310944750,1704826252173,-531.95256518,0.00041095,30]
[310944751,1704826252182,-500.0,0.00041095,30]
[310944752,1704826252191,-621.09,0.00041095,30]
[310944753,1704826252200,-500.0,0.00041095,30]
[310944754,1704826252211,-500.0,0.00041095,30]
[310944755,1704826252221,-500.0,0.00041095,30]
[310944756,1704826252231,-500.0,0.00041095,30]
[310944757,1704826252240,-541.74,0.00041095,30]
[310944758,1704826252249,-500.0,0.00041095,30]
[310944759,1704826252258,-500.0,0.00041095,30]
[310944760,1704826252267,-520.83,0.00041095,30]
[310944761,1704826252277,-500.0,0.00041095,30]
[310944762,1704826252286,-500.0,0.00041095,30]
[310944763,1704826252296,-506.35687286,0.00041095,30]
[310944764,1704826252305,-500.0,0.00041095,30]
[310944765,1704826252314,-500.0,0.00041095,30]
[310944766,1704826252323,-1291.43,0.00041095,30]
[310944767,1704826252333,-500.0,0.00041095,30]
[310944768,1704826252342,-1204.73,0.00041095,30]
[310944769,1704826252351,-516.05,0.00041095,30]
[310944770,1704826252361,-500.0,0.00041095,30]
[310944771,1704826252370,-500.0,0.00041095,30]
[310944772,1704826252380,-500.0,0.00041095,30]
[310944773,1704826252389,-500.0,0.00041095,30]
[310944774,1704826252399,-500.0,0.00041095,30]
[310944775,1704826252410,-398.36548272,0.00041095,30]
[310944776,1704826252420,-500.0,0.00041095,30]
[310944777,1704826252430,-500.0,0.00041095,30]
[310944778,1704826252439,-500.0,0.00041095,30]
[310944779,1704826252448,-524.69583929,0.00041095,30]
[310944780,1704826252457,-500.0,0.00041095,30]
[310944781,1704826252466,-500.0,0.00041095,30]
[310944782,1704826252476,-5000.0,0.00041095,30]
[310944783,1704826252485,-500.0,0.00041095,30]
[310944784,1704826252494,-822.52,0.00041095,30]
[310944785,1704826252504,-521.14,0.00041095,30]
[310944786,1704826252513,-500.0,0.00041095,30]
[310944787,1704826252522,-500.0,0.00041095,30]
[310944788,1704826252532,-500.0,0.00041095,30]
[310944789,1704826252541,-706.97,0.00041095,30]
[310944790,1704826252551,-500.0,0.00041095,30]
[310944791,1704826252561,-500.0,0.00041095,30]
[310944792,1704826252570,-500.0,0.00041095,30]
[310944793,1704826252579,-500.0,0.00041095,30]
[310944794,1704826252588,-637.30942231,0.00041095,30]
[310944795,1704826252598,-611.3,0.00041095,30]
[310944796,1704826252607,-500.0,0.00041095,30]
[310944797,1704826252617,-500.0,0.00041095,30]
[310944798,1704826252627,-500.0,0.00041095,30]
[310944799,1704826252638,-500.0,0.00041095,30]
[310944800,1704826252647,-500.0,0.00041095,30]
[310944801,1704826252657,-650.76,0.00041095,30]
[310944802,1704826252667,-644.82653311,0.00041095,30]
[310944803,1704826252676,-500.0,0.00041095,30]
[310944804,1704826252686,-500.0,0.00041095,30]
[310944805,1704826252695,-871.73,0.00041095,30]
[310944806,1704826252705,-500.0,0.00041095,30]
[310944807,1704826252714,-500.0,0.00041095,30]
[310944808,1704826252723,-553.15776137,0.00041095,30]
[310944809,1704826252734,-500.0,0.00041095,30]
[310944810,1704826252743,-500.0,0.00041095,30]
[310944811,1704826252752,-639.42,0.00041095,30]
[310944812,1704826252764,-500.0,0.00041095,30]
[310944813,1704826252776,-500.0,0.00041095,30]
[310944814,1704826252785,-500.0,0.00041095,30]
[310944815,1704826252794,-863.82,0.00041095,30]
[310944816,1704826252804,-500.0,0.00041095,30]
[310944817,1704826252816,-500.0,0.00041095,30]
[310944818,1704826252826,-500.0,0.00041095,30]
[310944819,1704826252835,-503.82133135,0.00041095,30]
[310944820,1704826252845,-500.0,0.00041095,30]
[310944821,1704826252854,-500.0,0.00041095,30]
[310944822,1704826252864,-899.72,0.00041095,30]
[310944823,1704826252873,-500.0,0.00041095,30]
[310944824,1704826252883,-500.0,0.00041095,30]
[310944825,1704826252893,-723.59,0.00041095,30]
[310944826,1704826252903,-500.0,0.00041095,30]
[310944827,1704826252912,-897.93,0.00041095,30]
[310944828,1704826252922,-500.0,0.00041095,30]
[310944829,1704826252932,-500.0,0.00041095,30]
[310944830,1704826252942,-801.77,0.00041095,30]
[310944831,1704826252951,-500.0,0.00041095,30]
[310944832,1704826252961,-500.0,0.00041095,30]
[310944833,1704826252971,-500.0,0.00041095,30]
[310944834,1704826252980,-508.49,0.00041095,30]
[310944835,1704826252990,-500.0,0.00041095,30]
[310944836,1704826252999,-500.0,0.00041095,30]
[310944837,1704826253009,-642.68,0.00041095,30]
[310944838,1704826253019,-500.0,0.00041095,30]
[310944839,1704826253028,-500.0,0.00041095,30]
[310944840,1704826253038,-605.23222051,0.00041095,30]
[310944841,1704826253048,-500.0,0.00041095,30]
[310944842,1704826253059,-572.64,0.00041095,30]
[310944843,1704826253068,-500.0,0.00041095,30]
[310944844,1704826253082,-500.0,0.00041095,30]
[310944845,1704826253091,-781.6,0.00041095,30]
[310944846,1704826253101,-500.0,0.00041095,30]
[310944847,1704826253111,-500.0,0.00041095,30]
[310944848,1704826253121,-500.0,0.00041095,30]
[310944849,1704826253131,-500.0,0.00041095,30]
[310944850,1704826253140,-500.0,0.00041095,30]
[310944851,1704826253150,-500.0,0.00041095,30]
[310944852,1704826253160,-502.56782388,0.00041095,30]
[310944853,1704826253169,-500.0,0.00041095,30]
[310944854,1704826253179,-500.0,0.00041095,30]
[310944855,1704826253188,-500.0,0.00041095,30]
[310944856,1704826253197,-500.0,0.00041095,30]
[310944857,1704826253207,-500.0,0.00041095,30]
[310944858,1704826253217,-500.0,0.00041095,30]
[310944859,1704826253226,-1777.28,0.00041095,30]
[310944860,1704826253235,-500.0,0.00041095,30]
[310944861,1704826253245,-500.0,0.00041095,30]
[310944862,1704826253255,-500.0,0.00041095,30]
[310944863,1704826253265,-500.0,0.00041095,30]
[310944864,1704826253274,-500.0,0.00041095,30]
[310944865,1704826253283,-500.0,0.00041095,30]
[310944866,1704826253292,-786.25,0.00041095,30]
[310944867,1704826253301,-468.36827203,0.00041095,30]
[310944868,1704826253311,-500.0,0.00041095,30]
[310944869,1704826253320,-300.0,0.00041095,30]
[310944870,1704826253330,-500.0,0.00041095,30]
[310944871,1704826253339,-500.0,0.00041095,30]
[310944872,1704826253349,-500.0,0.00041095,30]
[310944873,1704826253358,-500.0,0.00041095,30]
[310944874,1704826253367,-598.37,0.00041095,30]
[310944875,1704826253377,-532.87,0.00041095,30]
[310944876,1704826253388,-1111.64,0.00041095,30]
[310944877,1704826253397,-500.0,0.00041095,30]
[310944878,1704826253407,-500.1425142,0.00041095,30]
[310944879,1704826253417,-500.0,0.00041095,30]
[310944880,1704826253426,-500.0,0.00041095,30]
[310944881,1704826253436,-500.0,0.00041095,30]
[310944882,1704826253445,-575.83,0.00041095,30]
[310944883,1704826253455,-500.0,0.00041095,30]
[310944884,1704826253465,-573.74,0.00041095,30]
[310944885,1704826253476,-500.0,0.00041095,30]
[310944886,1704826253487,-500.0,0.00041095,30]
[310944887,1704826253499,-500.0,0.00041095,30]
[310944888,1704826253508,-500.0,0.00041095,30]
[310944889,1704826253519,-640.73857048,0.00041095,30]
[310944890,1704826253529,-500.0,0.00041095,30]
[310944891,1704826253539,-158.87371223,0.00041095,30]
[310944892,1704826253548,-763.94,0.00041095,30]
[310944893,1704826253558,-500.0,0.00041095,30]
[310944894,1704826253567,-500.0,0.00041095,30]
[310944895,1704826253577,-500.0,0.00041095,30]
[310944896,1704826253586,-500.0,0.00041095,30]
[310944897,1704826253595,-500.0,0.00041095,30]
[310944898,1704826253607,-500.0,0.00041095,30]
[310944899,1704826253616,-500.0,0.00041095,30]
[310944900,1704826253626,-500.0,0.00041095,30]
[310944901,1704826253636,-500.0,0.00041095,30]
[310944902,1704826253645,-500.0,0.00041095,30]
[310944903,1704826253655,-500.0,0.00041095,30]
[310944904,1704826253665,-513.0,0.00041095,30]
[310944905,1704826253674,-500.0,0.00041095,30]
[310944906,1704826253684,-500.0,0.00041095,30]
[310944907,1704826253694,-500.0,0.00041095,30]
[310944908,1704826253705,-864.82,0.00041095,30]
[310944909,1704826253715,-500.0,0.00041095,30]
[310944910,1704826253725,-649.27,0.00041095,30]
[310944911,1704826253736,-646.38,0.00041095,30]
[310944912,1704826253746,-500.0,0.00041095,30]
[310944913,1704826253755,-500.0,0.00041095,30]
[310944914,1704826253765,-224.43751632,0.00041095,30]
[310944915,1704826253775,-500.0,0.00041095,30]
[310944916,1704826253785,-500.0,0.00041095,30]
[310944917,1704826253794,-2123.61,0.00041095,30]
[310944918,1704826253804,-500.0,0.00041095,30]
[310944919,1704826253814,-925.64,0.00041095,30]
[310944920,1704826253822,-500.0,0.00041095,30]
[310944921,1704826253831,-505.38682207,0.00041095,30]
[310944922,1704826253840,-500.0,0.00041095,30]
[310944923,1704826253850,-500.0,0.00041095,30]
[310944924,1704826253859,-500.0,0.00041095,30]
[310944925,1704826253868,-500.0,0.00041095,30]
[310944926,1704826253878,-500.0,0.00041095,30]
[310944927,1704826253887,-500.0,0.00041095,30]
[310944928,1704826253896,-1710.37,0.00041095,30]
[310944929,1704826253905,-500.0,0.00041095,30]
[310944930,1704826253914,-500.0,0.00041095,30]
[310944931,1704826253923,-499.80364134,0.00041095,30]
[310944932,1704826253932,-500.0,0.00041095,30]
[310944933,1704826253941,-504.12,0.00041095,30]
[310944934,1704826253951,-931.01,0.00041095,30]
[310944935,1704826253960,-500.0,0.00041095,30]
[310944936,1704826253969,-807.98,0.00041095,30]
[310944937,1704826253978,-500.0,0.00041095,30]
[310944938,1704826253987,-500.0,0.00041095,30]
[310944939,1704826253997,-500.0,0.00041095,30]
[310944940,1704826254006,-500.0,0.00041095,30]
[310944941,1704826254015,-632.59,0.00041095,30]
[310944942,1704826254025,-500.0,0.00041095,30]
[310944943,1704826254035,-500.0,0.00041095,30]
[310944944,1704826254044,-613.84,0.00041095,30]
[310944945,1704826254053,-500.0,0.00041095,30]
[310944946,1704826254062,-500.0,0.00041095,30]
[310944947,1704826254071,-500.0,0.00041095,30]
[310944948,1704826254080,-500.0,0.00041095,30]
[310944949,1704826254089,-500.0,0.00041095,30]
[310944950,1704826254098,-500.0,0.00041095,30]
[310944951,1704826254107,-1218.96,0.00041095,30]
[310944952,1704826254117,-544.33,0.00041095,30]
[310944953,1704826254126,-500.0,0.00041095,30]
[310944954,1704826254136,-518.84473675,0.00041095,30]
[310944955,1704826254146,-500.0,0.00041095,30]
[310944956,1704826254156,-878.03,0.00041095,30]
[310944957,1704826254166,-500.0,0.00041095,30]
[310944958,1704826254175,-732.39,0.00041095,30]
[310944959,1704826254184,-1809.14,0.00041095,30]
[310944960,1704826254193,-562.88011869,0.00041095,30]
[310944961,1704826254202,-500.0,0.00041095,30]
[310944962,1704826254211,-2745.55,0.00041095,30]
[310944963,1704826254219,-633.36,0.00041095,30]
[310944964,1704826254228,-500.0,0.00041095,30]
[310944965,1704826254237,-500.0,0.00041095,30]
[310944966,1704826254246,-500.0,0.00041095,30]
[310944967,1704826254255,-1358.65,0.00041095,30]
[310944968,1704826254263,-500.0,0.00041095,30]
[310944969,1704826254272,-514.76195547,0.00041095,30]
[310944970,1704826254281,-500.0,0.00041095,30]
[310944971,1704826254290,-500.0,0.00041095,30]
[310944972,1704826254299,-500.0,0.00041095,30]
[310944973,1704826254307,-501.10473237,0.00041095,30]
[310944974,1704826254316,-913.36,0.00041095,30]
[310944975,1704826254336,-500.0,0.00041095,30]
[310944976,1704826254347,-643.58,0.00041095,30]
[310944977,1704826254356,-1805.28,0.00041095,30]
[310944978,1704826254366,-500.0,0.00041095,30]
[310944979,1704826254375,-500.0,0.00041095,30]
[310944980,1704826254385,-500.0,0.00041095,30]
[310944981,1704826254394,-500.0,0.00041095,30]
[310944982,1704826254404,-893.77,0.00041095,30]
[310944983,1704826254413,-500.0,0.00041095,30]
[310944984,1704826254423,-500.0,0.00041095,30]
[310944985,1704826254432,-821.5,0.00041095,30]
[310944986,1704826254442,-500.0,0.00041095,30]
[310944987,1704826254451,-656.53,0.00041095,30]
[310944988,1704826254461,-500.0,0.00041095,30]
[310944989,1704826254470,-1573.98,0.00041095,30]
[310944990,1704826254479,-856.32,0.00041095,30]
[310944991,1704826254640,-500.0,0.00041095,30]
[310944992,1704826254649,-537.81,0.00041095,30]
[310944993,1704826254658,-500.0,0.00041095,30]
[310944994,1704826254667,-505.28388529,0.00041095,30]
[310944995,1704826254675,-614.66022519,0.00041095,30]
[310944996,1704826254684,-500.0,0.00041095,30]
[310944997,1704826254693,-500.0,0.00041095,30]
[310944998,1704826254702,-500.0,0.00041095,30]
[310944999,1704826254710,-770.52,0.00041095,30]
[310945000,1704826254724,-500.0,0.00041095,30]
[310945001,1704826254733,-735.47,0.00041095,30]
[310945002,1704826254742,-808.66,0.00041095,30]
[310945003,1704826254751,-762.53,0.00041095,30]
[310945004,1704826254761,-1589.49,0.00041095,30]
[310945005,1704826254770,-500.0,0.00041095,30]
[310945006,1704826254779,-500.0,0.00041095,5]
[310945007,1704826254788,-997.88,0.00041095,30]
[310945008,1704826254797,-500.0,0.00041095,30]
[310945009,1704826254807,-2074.41,0.00041095,30]
[310945010,1704826254817,-500.0,0.00041095,30]
[310945011,1704826254827,-500.0,0.00041095,30]
[310945012,1704826254837,-1000.0,0.00041095,2]
[310945013,1704826254847,-1687.85,0.00041095,30]
[310945014,1704826254857,-500.0,0.00041095,30]
[310945015,1704826254866,-1068.66,0.00041095,30]
[310945016,1704826254876,-500.0,0.00041095,30]
[310945017,1704826254887,-500.0,0.00041095,30]
[310945018,1704826254897,-1496.15,0.00041095,30]
[310945019,1704826254907,-1283.01,0.00041095,30]
[310945020,1704826254917,-500.0,0.00041095,30]
[310945021,1704826254927,-500.0,0.00041095,30]
[310945022,1704826254936,-500.0,0.00041095,30]
[310945023,1704826254946,-946.38,0.00041095,30]
[310945024,1704826254958,-500.0,0.00041095,30]
[310945025,1704826254967,-589.86,0.00041095,30]
[310945026,1704826254977,-500.0,0.00041095,30]
[310945027,1704826254987,-500.0,0.00041095,30]
[310945028,1704826254998,-500.0,0.00041095,30]
[310945029,1704826255008,-1242.78,0.00041095,30]
[310945030,1704826255018,-500.0,0.00041095,30]
[310945031,1704826255028,-669.83,0.00041095,30]
[310945032,1704826255037,-551.75,0.00041095,30]
[310945033,1704826255047,-977.43,0.00041095,30]
[310945034,1704826255057,-500.0,0.00041095,30]
[310945035,1704826255067,-1062.26,0.00041095,30]
[310945036,1704826255079,-969.07,0.00041095,30]
[310945037,1704826255088,-1422.33,0.00041095,30]
[310945038,1704826255098,-1280.63,0.00041095,30]
[310945039,1704826255107,-511.53488041,0.00041095,30]
[310945040,1704826255118,-500.0,0.00041095,30]
[310945041,1704826255127,-574.76,0.00041095,30]
[310945042,1704826255138,-500.0,0.00041095,30]
[310945043,1704826255147,-500.0,0.00041095,30]
[310945044,1704826255157,-500.0,0.00041095,30]
[310945045,1704826255170,-500.0,0.00041095,30]
[310945046,1704826255179,-2046.39,0.00041095,30]
[310945047,1704826255189,-705.42,0.00041095,30]
[310945048,1704826255198,-672.09,0.00041095,30]